fUST/lending_fUST_20250709
["ID","MTS","AMOUNT","RATE_DAILY","PERIOD"]
[370459778,1752028246881,-460.0,0.00020547,2]
[370459780,1752028246891,-718.84,0.00020547,2]
[370459782,1752028246901,-718.15,0.00020547,2]
[370459784,1752028246910,-657.38,0.00020547,2]
[370459786,1752028246920,-215.73,0.00020547,2]
[370459788,1752028246929,-460.0,0.00020547,2]
[370459790,1752028246938,-159.21916,0.00020588,2]
[370459792,1752028246948,-716.195754,0.00020597,2]
[370459794,1752028246957,-300.40463777,0.00020633,2]
[370459796,1752028246967,-742.6949969,0.00020652,2]
[370459798,1752028246977,-172.51062155,0.00020707,2]
[370460099,1752028307545,1019.91712921,0.00027397,120]
[370460103,1752028544567,470.132006,0.00013699,2]
[370460111,1752029134177,200955.0,0.00027397,120]
[370460114,1752029168236,508.8,0.00027397,120]
[370460115,1752029356310,2187.41552871,0.00018075,2]
[370460116,1752029366650,373.43385225,0.00018075,2]
[370460117,1752029386433,2019.51130046,0.00027397,120]
[370460123,1752029432455,-549.04129771,0.00018321,2]
[370460124,1752029432466,-404.0809011,0.00018339,2]
[370460125,1752029432476,-300.0,0.00018977,2]
[370460126,1752029432486,-12916.12284731,0.00018978,2]
[370460127,1752029432509,-27328.09589675,0.00018978,2]
[370460128,1752029432520,-1269.27517721,0.00019078,2]
[370460129,1752029432529,-824.27914844,0.00019132,2]
[370460130,1752029432541,-859.88,0.00019168,3]
[370460131,1752029432552,-429.94,0.00019168,3]
[370460132,1752029432561,-214.97,0.00019168,3]
[370460133,1752029432571,-644.91,0.00019168,3]
[370460134,1752029432581,-500.0,0.00019171,2]
[370460135,1752029432591,-206.57054542,0.00019171,2]
[370460136,1752029432600,-182.34508102,0.00019171,2]
[370460137,1752029432610,-500.0,0.00019171,2]
[370460138,1752029432620,-626.47946508,0.00019171,2]
[370460139,1752029432629,-500.0,0.00019173,2]
[370460140,1752029432639,-206.39382154,0.00019173,2]
[370460141,1752029432648,-501.56214522,0.00019173,2]
[370460142,1752029432657,-500.0,0.00019173,2]
[370460143,1752029432668,-501.50888143,0.00019173,2]
[370460144,1752029432679,-501.46177676,0.00019173,2]
[370460145,1752029432689,-501.08220381,0.00019173,2]
[370460146,1752029432699,-555.16206895,0.00019173,2]
[370460147,1752029432708,-500.0,0.00019173,2]
[370460148,1752029432719,-502.28155957,0.00019173,2]
[370460149,1752029432730,-500.0,0.00019173,2]
[370460150,1752029432741,-506.00487307,0.00019173,2]
[370460151,1752029432751,-500.96008151,0.00019173,2]
[370460152,1752029432763,-356.27758709,0.00019173,2]
[370460153,1752029432774,-500.0,0.00019173,2]
[370460154,1752029432784,-502.09305626,0.00019173,2]
[370460155,1752029432794,-500.0,0.00019173,2]
[370460156,1752029432804,-500.30597891,0.00019173,2]
[370460157,1752029432815,-500.0,0.00019173,2]
[370460158,1752029432825,-500.56464447,0.00019173,2]
[370460159,1752029432834,-500.0,0.00019173,2]
[370460160,1752029432843,-500.0,0.00019173,2]
[370460161,1752029432853,-481.56335736,0.00019178,2]
[370460162,1752029432862,-460.0,0.00019178,2]
[370460163,1752029432874,-460.0,0.00019178,2]
[370460164,1752029432884,-500.84,0.00019178,2]
[370460165,1752029432894,-460.0,0.00019178,2]
[370460166,1752029432903,-460.0,0.00019178,2]
[370460167,1752029432912,-351.77446615,0.00019178,2]
[370460168,1752029432925,-108.22553385,0.00019178,2]
[370460169,1752029432937,-460.0,0.00019178,2]
[370460170,1752029432946,-259.86804846,0.00019178,2]
[370460171,1752029432956,-29.39629359,0.00019178,2]
[370460172,1752029432968,-254.87,0.00019178,2]
[370460221,1752029438832,-438.66335317,0.00018978,2]
[370460222,1752029438842,-140.05189794,0.00019178,2]
[370460223,1752029438854,-35.68180847,0.00019178,2]
[370460224,1752029438863,-460.0,0.00019178,2]
[370460225,1752029438873,-44.16441089,0.00019178,2]
[370460226,1752029438885,-406.45986646,0.00019178,2]
[370460227,1752029438909,-11.93022462,0.00019178,2]
[370460228,1752029438918,-460.0,0.00019178,2]
[370460229,1752029438928,-463.54492002,0.00019178,2]
[370460230,1752029438938,-462.05012445,0.00019178,2]
[370460231,1752029438950,-0.41948672,0.00019178,2]
[370460232,1752029438959,-462.92942947,0.00019178,2]
[370460233,1752029438969,-460.0,0.00019178,2]
[370460234,1752029438979,-468.23378098,0.00019178,2]
[370460235,1752029438988,-468.55685459,0.00019178,2]
[370460236,1752029438998,-460.0,0.00019178,2]
[370460237,1752029439008,-151.0,0.00019178,2]
[370460238,1752029439018,-129.63093132,0.00019178,2]
[370460239,1752029439038,-370.36906868,0.00019178,2]
[370460240,1752029439048,-463.21881239,0.00019178,2]
[370460241,1752029439057,-460.0,0.00019178,2]
[370460242,1752029439067,-460.0,0.00019178,2]
[370460243,1752029439077,-461.35696453,0.00019178,2]
[370460244,1752029439087,-460.0,0.00019178,2]
[370460245,1752029439097,-460.0,0.00019178,2]
[370460246,1752029439107,-460.0,0.00019178,2]
[370460247,1752029439117,-460.0,0.00019178,2]
[370460248,1752029439130,-430.74143084,0.00019178,2]
[370460249,1752029439144,-460.0,0.00019178,2]
[370460250,1752029439154,-460.0,0.00019178,2]
[370460251,1752029439164,-460.0,0.00019178,2]
[370460252,1752029439175,-248.46191378,0.00019178,2]
[370460253,1752029439185,-460.25085513,0.00019178,2]
[370460254,1752029439194,-460.0,0.00019178,2]
[370460255,1752029439204,-461.26679769,0.00019178,2]
[370460256,1752029439214,-460.0,0.00019178,2]
[370460257,1752029439224,-460.0,0.00019178,2]
[370460258,1752029439233,-461.51899661,0.00019178,2]
[370460259,1752029439242,-460.0,0.00019178,2]
[370460260,1752029439251,-200.69717208,0.00019178,2]
[370460261,1752029439261,-460.0,0.00019178,2]
[370460262,1752029439271,-463.26076932,0.00019178,2]
[370460263,1752029439281,-462.3557801,0.00019178,2]
[370460264,1752029439290,-460.0,0.00019178,2]
[370460265,1752029439300,-545.54574829,0.00019178,2]
[370460266,1752029439310,-217.01380047,0.00019178,2]
[370460267,1752029439320,-460.0,0.00019178,2]
[370460268,1752029439329,-460.0,0.00019178,2]
[370460269,1752029439339,-460.0,0.00019178,2]
[370460270,1752029439348,-500.0,0.00019178,2]
[370460271,1752029439358,-151.0,0.00019178,2]
[370460272,1752029439370,-461.93566535,0.00019178,2]
[370460273,1752029439381,-151.0,0.00019178,2]
[370460274,1752029439391,-460.0,0.00019178,2]
[370460275,1752029439400,-462.43729135,0.00019178,2]
[370460276,1752029439411,-460.0,0.00019178,2]
[370460277,1752029439420,-460.0,0.00019178,2]
[370460278,1752029439430,-461.12307402,0.00019178,2]
[370460279,1752029439440,-460.0,0.00019178,2]
[370460280,1752029439450,-460.0,0.00019178,2]
[370460281,1752029439460,-460.0,0.00019178,2]
[370460282,1752029439470,-464.58193176,0.00019178,2]
[370460283,1752029439479,-460.0,0.00019178,2]
[370460284,1752029439489,-460.0,0.00019178,2]
[370460285,1752029439500,-460.0,0.00019178,2]
[370460286,1752029439511,-460.0,0.00019178,2]
[370460287,1752029439521,-460.0,0.00019178,2]
[370460288,1752029439531,-460.0,0.00019178,2]
[370460289,1752029439542,-460.0,0.00019178,2]
[370460290,1752029439552,-460.0,0.00019178,2]
[370460291,1752029439562,-460.0,0.00019178,2]
[370460292,1752029439571,-460.0,0.00019178,2]
[370460293,1752029439582,-467.24871425,0.00019178,2]
[370460294,1752029439592,-460.0,0.00019178,2]
[370460295,1752029439605,-460.0,0.00019178,2]
[370460296,1752029439614,-460.0,0.00019178,2]
[370460297,1752029439624,-460.0,0.00019178,2]
[370460298,1752029439635,-460.0,0.00019178,2]
[370460299,1752029439644,-460.0,0.00019178,2]
[370460300,1752029439655,-460.0,0.00019178,2]
[370460301,1752029439665,-461.32864839,0.00019178,2]
[370460302,1752029439676,-460.0,0.00019178,2]
[370460303,1752029439687,-460.0,0.00019178,2]
[370460304,1752029439697,-522.1619707,0.00019178,2]
[370460305,1752029439708,-460.0,0.00019178,2]
[370460306,1752029439717,-460.0,0.00019178,2]
[370460307,1752029439727,-464.03851449,0.00019178,2]
[370460308,1752029439737,-465.98337596,0.00019178,2]
[370460309,1752029439746,-460.0,0.00019178,2]
[370460310,1752029439757,-460.0,0.00019178,2]
[370460311,1752029439766,-523.18617986,0.00019178,2]
[370460312,1752029439777,-460.0,0.00019178,2]
[370460313,1752029439789,-460.0,0.00019178,2]
[370460314,1752029439799,-460.0,0.00019178,2]
[370460315,1752029439809,-460.0,0.00019178,2]
[370460316,1752029439821,-460.0,0.00019178,2]
[370460317,1752029439832,-460.0,0.00019178,2]
[370460318,1752029439842,-547.62409307,0.00019178,2]
[370460319,1752029439852,-460.0,0.00019178,2]
[370460320,1752029439862,-460.0,0.00019178,2]
[370460321,1752029439872,-463.26790729,0.00019178,2]
[370460322,1752029439882,-460.0,0.00019178,2]
[370460323,1752029439892,-573.72,0.00019178,2]
[370460324,1752029439902,-460.0,0.00019178,2]
[370460325,1752029439912,-460.0,0.00019178,2]
[370460326,1752029439922,-460.0,0.00019178,2]
[370460327,1752029439931,-460.0,0.00019178,2]
[370460328,1752029439941,-460.0,0.00019178,2]
[370460329,1752029439952,-460.0,0.00019178,2]
[370460330,1752029439962,-504.27609676,0.00019178,2]
[370460331,1752029439971,-460.0,0.00019178,2]
[370460332,1752029439981,-460.0,0.00019178,2]
[370460333,1752029439991,-460.0,0.00019178,2]
[370460334,1752029440000,-463.85209503,0.00019178,2]
[370460335,1752029440011,-460.0,0.00019178,2]
[370460336,1752029440021,-460.0,0.00019178,2]
[370460337,1752029440032,-483.39,0.00019178,2]
[370460339,1752029440042,-376.01716135,0.00019178,2]
[370460340,1752029440051,-205.39066543,0.00019178,2]
[370460341,1752029440061,-470.27409148,0.00019178,2]
[370460342,1752029440072,-460.0,0.00019178,2]
[370460343,1752029440081,-460.0,0.00019178,2]
[370460344,1752029440092,-460.0,0.00019178,2]
[370460345,1752029440103,-463.00072052,0.00019178,2]
[370460346,1752029440114,-460.0,0.00019178,2]
[370460347,1752029440124,-460.0,0.00019178,2]
[370460348,1752029440136,-460.0,0.00019178,2]
[370460349,1752029440147,-460.0,0.00019178,2]
[370460350,1752029440157,-460.0,0.00019178,2]
[370460351,1752029440167,-163.70176925,0.00019178,2]
[370460352,1752029440178,-460.0,0.00019178,2]
[370460353,1752029440189,-460.0,0.00019178,2]
[370460354,1752029440199,-460.0,0.00019178,2]
[370460355,1752029440211,-460.0,0.00019178,2]
[370460356,1752029440220,-460.0,0.00019178,2]
[370460357,1752029440230,-386.43192426,0.00019178,2]
[370460358,1752029440240,-460.0,0.00019178,2]
[370460359,1752029440251,-460.0,0.00019178,2]
[370460360,1752029440261,-460.0,0.00019178,2]
[370460361,1752029440270,-460.0,0.00019178,2]
[370460362,1752029440293,-214.58168349,0.00019178,2]
[370460363,1752029440305,-548.35259827,0.00019178,2]
[370460364,1752029440315,-460.0,0.00019178,2]
[370460365,1752029440327,-460.0,0.00019178,2]
[370460366,1752029440337,-460.0,0.00019178,2]
[370460367,1752029440347,-460.0,0.00019178,2]
[370460368,1752029440359,-460.0,0.00019178,2]
[370460369,1752029440369,-460.0,0.00019178,2]
[370460370,1752029440381,-460.0,0.00019178,2]
[370460371,1752029440390,-462.71446053,0.00019178,2]
[370460372,1752029440400,-460.0,0.00019178,2]
[370460373,1752029440409,-460.0,0.00019178,2]
[370460374,1752029440419,-464.75586545,0.00019178,2]
[370460375,1752029440430,-460.0,0.00019178,2]
[370460376,1752029440439,-460.0,0.00019178,2]
[370460377,1752029440450,-460.0,0.00019178,2]
[370460378,1752029440461,-460.0,0.00019178,2]
[370460379,1752029440472,-460.0,0.00019178,2]
[370460380,1752029440483,-460.0,0.00019178,2]
[370460381,1752029440495,-460.0,0.00019178,2]
[370460382,1752029440505,-460.0,0.00019178,2]
[370460383,1752029440516,-460.0,0.00019178,2]
[370460384,1752029440527,-460.0,0.00019178,2]
[370460385,1752029440537,-460.0,0.00019178,2]
[370460386,1752029440548,-461.08488211,0.00019178,2]
[370460387,1752029440559,-605.54118815,0.00019178,2]
[370460388,1752029440570,-460.0,0.00019178,2]
[370460389,1752029440580,-460.0,0.00019178,2]
[370460390,1752029440591,-460.0,0.00019178,2]
[370460391,1752029440601,-460.0,0.00019178,2]
[370460392,1752029440611,-460.0,0.00019178,2]
[370460393,1752029440621,-503.86328492,0.00019178,2]
[370460394,1752029440632,-460.0,0.00019178,2]
[370460395,1752029440643,-460.0,0.00019178,2]
[370460396,1752029440652,-460.0,0.00019178,2]
[370460397,1752029440663,-465.84513152,0.00019178,2]
[370460399,1752029440673,-460.0,0.00019178,2]
[370460400,1752029440683,-500.0,0.00019178,2]
[370460401,1752029440693,-460.0,0.00019178,2]
[370460402,1752029440702,-479.03,0.00019178,2]
[370460403,1752029440713,-460.0,0.00019178,2]
[370460404,1752029440724,-460.0,0.00019178,2]
[370460405,1752029440734,-606.29593101,0.00019178,2]
[370460406,1752029440744,-460.0,0.00019178,2]
[370460407,1752029440754,-460.0,0.00019178,2]
[370460408,1752029440763,-812.99,0.00019178,2]
[370460409,1752029440773,-460.0,0.00019178,2]
[370460410,1752029440785,-3032.81,0.00019178,2]
[370460411,1752029440796,-460.0,0.00019178,2]
[370460412,1752029440807,-460.0,0.00019178,2]
[370460413,1752029440818,-460.0,0.00019178,2]
[370460414,1752029440828,-460.0,0.00019178,2]
[370460415,1752029440838,-460.0,0.00019178,2]
[370460416,1752029440848,-460.0,0.00019178,2]
[370460417,1752029440859,-460.0,0.00019178,2]
[370460418,1752029440869,-460.0,0.00019178,2]
[370460419,1752029440879,-460.0,0.00019178,2]
[370460420,1752029440890,-460.0,0.00019178,2]
[370460421,1752029440900,-460.0,0.00019178,2]
[370460422,1752029440910,-460.0,0.00019178,2]
[370460423,1752029440920,-460.0,0.00019178,2]
[370460424,1752029440930,-2302.41,0.00019178,2]
[370460425,1752029440939,-460.0,0.00019178,2]
[370460426,1752029440950,-151.0,0.00019178,2]
[370460427,1752029440959,-460.0,0.00019178,2]
[370460429,1752029440969,-1488.7,0.00019178,2]
[370460430,1752029440979,-500.0,0.00019178,2]
[370460431,1752029440988,-464.68927336,0.00019178,2]
[370460432,1752029440999,-460.0,0.00019178,2]
[370460433,1752029441009,-460.0,0.00019178,2]
[370460434,1752029441019,-151.0,0.00019178,2]
[370460435,1752029441029,-151.0,0.00019178,2]
[370460436,1752029441038,-151.0,0.00019178,2]
[370460437,1752029441049,-462.85379519,0.00019178,2]
[370460438,1752029441058,-460.0,0.00019178,2]
[370460439,1752029441069,-151.0,0.00019178,2]
[370460440,1752029441078,-536.66,0.00019178,2]
[370460441,1752029441088,-460.0,0.00019178,2]
[370460442,1752029441098,-151.86197161,0.00019178,2]
[370460443,1752029441108,-468.38963219,0.00019178,2]
[370460444,1752029441119,-763.27,0.00019178,2]
[370460445,1752029441129,-460.0,0.00019178,2]
[370460446,1752029441141,-151.0,0.00019178,2]
[370460447,1752029441151,-462.91875197,0.00019178,2]
[370460448,1752029441160,-460.0,0.00019178,2]
[370460449,1752029441170,-462.9962146,0.00019178,2]
[370460450,1752029441179,-151.59827583,0.00019178,2]
[370460451,1752029441189,-526.62,0.00019178,2]
[370460452,1752029441199,-460.0,0.00019178,2]
[370460453,1752029441208,-460.0,0.00019178,2]
[370460454,1752029441218,-460.0,0.00019178,2]
[370460455,1752029441228,-460.0,0.00019178,2]
[370460456,1752029441238,-460.0,0.00019178,2]
[370460457,1752029441248,-460.0,0.00019178,2]
[370460458,1752029441257,-461.78223938,0.00019178,2]
[370460459,1752029441267,-460.0,0.00019178,2]
[370460460,1752029441276,-154.36963223,0.00019178,2]
[370460461,1752029441287,-686.65,0.00019178,2]
[370460462,1752029441296,-460.0,0.00019178,2]
[370460463,1752029441306,-460.0,0.00019178,2]
[370460464,1752029441316,-460.0,0.00019178,2]
[370460465,1752029441325,-460.0,0.00019178,2]
[370460466,1752029441335,-460.0,0.00019178,2]
[370460467,1752029441345,-460.0,0.00019178,2]
[370460468,1752029441355,-460.0,0.00019178,2]
[370460469,1752029441364,-460.0,0.00019178,2]
[370460470,1752029441374,-460.0,0.00019178,2]
[370460471,1752029441384,-460.0,0.00019178,2]
[370460472,1752029441394,-460.0,0.00019178,2]
[370460473,1752029441405,-460.0,0.00019178,2]
[370460474,1752029441414,-1467.71,0.00019178,2]
[370460475,1752029441424,-460.0,0.00019178,2]
[370460476,1752029441433,-460.0,0.00019178,2]
[370460477,1752029441443,-460.0,0.00019178,2]
[370460478,1752029441452,-460.0,0.00019178,2]
[370460479,1752029441462,-460.0,0.00019178,2]
[370460480,1752029441471,-1539.37,0.00019178,2]
[370460481,1752029441481,-460.0,0.00019178,2]
[370460482,1752029441639,-460.0,0.00019178,2]
[370460483,1752029441664,-464.66188811,0.00019178,2]
[370460484,1752029441675,-460.0,0.00019178,2]
[370460485,1752029441685,-463.56360964,0.00019178,2]
[370460486,1752029441695,-501.84576524,0.00019178,2]
[370460487,1752029441705,-462.17247759,0.00019178,2]
[370460488,1752029441715,-462.83008995,0.00019178,2]
[370460489,1752029441726,-460.0,0.00019178,2]
[370460490,1752029441737,-460.0,0.00019178,2]
[370460491,1752029441747,-890.53,0.00019178,2]
[370460492,1752029441757,-460.0,0.00019178,2]
[370460493,1752029441767,-462.34266191,0.00019178,2]
[370460494,1752029441777,-2130.94,0.00019178,2]
[370460495,1752029441788,-460.0,0.00019178,2]
[370460496,1752029441797,-460.0,0.00019178,2]
[370460497,1752029441808,-463.64711114,0.00019178,2]
[370460498,1752029441817,-460.0,0.00019178,2]
[370460499,1752029441827,-460.0,0.00019178,2]
[370460500,1752029441837,-460.0,0.00019178,2]
[370460501,1752029441847,-460.0,0.00019178,2]
[370460502,1752029441856,-463.27839922,0.00019178,2]
[370460503,1752029441866,-460.0,0.00019178,2]
[370460504,1752029441876,-296.39195409,0.00019178,2]
[370460505,1752029441886,-529.48,0.00019178,2]
[370460506,1752029441896,-460.0,0.00019178,2]
[370460507,1752029441907,-460.0,0.00019178,2]
[370460508,1752029441917,-460.0,0.00019178,2]
[370460509,1752029441927,-460.0,0.00019178,2]
[370460510,1752029441937,-460.0,0.00019178,2]
[370460511,1752029441947,-1268.98,0.00019178,2]
[370460512,1752029441958,-460.0,0.00019178,2]
[370460513,1752029441975,-532.53213759,0.00019178,2]
[370460514,1752029441985,-460.0,0.00019178,2]
[370460515,1752029441995,-460.0,0.00019178,2]
[370460516,1752029442005,-460.0,0.00019178,2]
[370460517,1752029442015,-460.0,0.00019178,2]
[370460518,1752029442025,-460.0,0.00019178,2]
[370460519,1752029442035,-460.0,0.00019178,2]
[370460520,1752029442044,-619.65,0.00019178,2]
[370460521,1752029442054,-461.24736516,0.00019178,2]
[370460522,1752029442064,-463.39613519,0.00019178,2]
[370460523,1752029442073,-460.0,0.00019178,2]
[370460524,1752029442083,-460.0,0.00019178,2]
[370460525,1752029442094,-462.68113847,0.00019178,2]
[370460526,1752029442103,-2512.11,0.00019178,2]
[370460527,1752029442113,-460.0,0.00019178,2]
[370460528,1752029442127,-460.0,0.00019178,2]
[370460529,1752029442141,-462.92015613,0.00019178,2]
[370460530,1752029442151,-460.0,0.00019178,2]
[370460531,1752029442160,-682.29,0.00019178,2]
[370460532,1752029442170,-460.0,0.00019178,2]
[370460533,1752029442181,-460.0,0.00019178,2]
[370460534,1752029442191,-460.0,0.00019178,2]
[370460535,1752029442201,-460.0,0.00019178,2]
[370460536,1752029442211,-1065.93,0.00019178,2]
[370460537,1752029442221,-844.89,0.00019178,2]
[370460538,1752029442230,-460.0,0.00019178,2]
[370460539,1752029442240,-460.0,0.00019178,2]
[370460540,1752029442249,-400.40905759,0.00019178,2]
[370460541,1752029442259,-495.22,0.00019178,2]
[370460542,1752029442268,-460.0,0.00019178,2]
[370460543,1752029442277,-460.0,0.00019178,2]
[370460544,1752029442288,-460.0,0.00019178,2]
[370460545,1752029442297,-462.19315785,0.00019178,2]
[370460546,1752029442307,-460.0,0.00019178,2]
[370460547,1752029442316,-460.0,0.00019178,2]
[370460548,1752029442326,-463.0628533,0.00019178,2]
[370460549,1752029442335,-814.16,0.00019178,2]
[370460550,1752029442345,-460.0,0.00019178,2]
[370460551,1752029442355,-461.58931259,0.00019178,2]
[370460552,1752029442364,-462.41908171,0.00019178,2]
[370460553,1752029442374,-460.0,0.00019178,2]
[370460554,1752029442384,-460.0,0.00019178,2]
[370460555,1752029442394,-460.0,0.00019178,2]
[370460556,1752029442404,-460.0,0.00019178,2]
[370460557,1752029442414,-460.0,0.00019178,2]
[370460558,1752029442423,-460.0,0.00019178,2]
[370460559,1752029442433,-460.0,0.00019178,2]
[370460560,1752029442442,-460.0,0.00019178,2]
[370460561,1752029442451,-460.0,0.00019178,2]
[370460562,1752029442460,-460.0,0.00019178,2]
[370460563,1752029442470,-460.0,0.00019178,2]
[370460564,1752029442479,-460.0,0.00019178,2]
[370460565,1752029442489,-460.0,0.00019178,2]
[370460566,1752029442498,-460.0,0.00019178,2]
[370460567,1752029442508,-772.56,0.00019178,2]
[370460568,1752029442517,-472.38273465,0.00019178,2]
[370460569,1752029442526,-495.07,0.00019178,2]
[370460570,1752029442535,-460.0,0.00019178,2]
[370460571,1752029442545,-478.35739319,0.00019178,2]
[370460572,1752029442554,-460.0,0.00019178,2]
[370460573,1752029442564,-460.0,0.00019178,2]
[370460574,1752029442574,-367.78925463,0.00019178,2]
[370460575,1752029442584,-460.0,0.00019178,2]
[370460576,1752029442593,-804.53,0.00019178,2]
[370460577,1752029442602,-460.0,0.00019178,2]
[370460578,1752029442612,-460.0,0.00019178,2]
[370460579,1752029442621,-222.28590376,0.00019178,2]
[370460580,1752029442631,-460.0,0.00019178,2]
[370460581,1752029442643,-460.0,0.00019178,2]
[370460582,1752029442653,-460.0,0.00019178,2]
[370460583,1752029442662,-508.66,0.00019178,2]
[370460584,1752029442672,-460.0,0.00019178,2]
[370460585,1752029442684,-460.0,0.00019178,2]
[370460586,1752029442693,-460.0,0.00019178,2]
[370460587,1752029442703,-460.0,0.00019178,2]
[370460588,1752029442713,-460.0,0.00019178,2]
[370460589,1752029442722,-451.9974566,0.00019178,2]
[370460590,1752029442732,-463.09636515,0.00019178,2]
[370460591,1752029442741,-151.89622061,0.00019178,2]
[370460592,1752029442750,-1018.28,0.00019178,2]
[370460593,1752029442760,-460.0,0.00019178,2]
[370460594,1752029442769,-255.07164888,0.00019178,2]
[370460595,1752029442779,-460.0,0.00019178,2]
[370460596,1752029442788,-151.0,0.00019178,2]
[370460597,1752029442798,-460.0,0.00019178,2]
[370460598,1752029442807,-460.0,0.00019178,2]
[370460599,1752029442816,-500.0,0.00019178,2]
[370460600,1752029442826,-151.0,0.00019178,2]
[370460601,1752029442836,-151.0,0.00019178,2]
[370460602,1752029442845,-462.56953807,0.00019178,2]
[370460603,1752029442854,-460.0,0.00019178,2]
[370460604,1752029442864,-460.0,0.00019178,2]
[370460605,1752029442873,-882.65,0.00019178,2]
[370460606,1752029442884,-500.0,0.00019178,2]
[370460607,1752029442893,-206.093331,0.00019178,2]
[370460608,1752029442903,-151.0,0.00019205,2]
[370460609,1752029442913,-501.23623132,0.00019205,2]
[370460610,1752029442923,-502.24290546,0.00019205,2]
[370460611,1752029442932,-198.31864804,0.00019205,2]
[370460612,1752029442941,-151.0,0.00019205,2]
[370460613,1752029442951,-151.0,0.00019205,2]
[370460614,1752029442960,-500.0,0.00019205,2]
[370460615,1752029442970,-151.0,0.00019205,2]
[370460616,1752029442980,-198.75168813,0.00019205,2]
[370460617,1752029442990,-294.01293821,0.00019205,2]
[370460618,1752029442999,-151.0,0.00019205,2]
[370460619,1752029443012,-151.0,0.00019205,2]
[370460620,1752029443021,-151.0,0.00019205,2]
[370460622,1752029443031,-500.0,0.00019205,2]
[370460623,1752029443040,-151.0,0.00019205,2]
[370460624,1752029443049,-151.0,0.00019205,2]
[370460625,1752029443059,-198.88861895,0.00019233,2]
[370460626,1752029443068,-151.0,0.00019233,2]
[370460627,1752029443078,-200.70857585,0.00019233,2]
[370460628,1752029443088,-500.0,0.00019233,2]
[370460629,1752029443097,-151.0,0.00019233,2]
[370460630,1752029443108,-198.98466801,0.00019233,2]
[370460631,1752029443117,-151.0,0.00019233,2]
[370460632,1752029443127,-199.56185223,0.00019233,2]
[370460633,1752029443137,-500.0,0.00019233,2]
[370460635,1752029443152,-151.0,0.00019233,2]
[370460636,1752029443170,-151.0,0.00019233,2]
[370460638,1752029443179,-195.57710585,0.0001926,2]
[370460639,1752029443188,-248.79137799,0.0001926,2]
[370460640,1752029443198,-176.78491121,0.0001926,2]
[370460642,1752029443207,-200.37131241,0.0001926,2]
[370460643,1752029443216,-500.0,0.0001926,2]
[370460645,1752029443226,-265.89111439,0.0001926,2]
[370460646,1752029443236,-151.0,0.0001926,2]
[370460647,1752029443245,-500.0,0.00019288,2]
[370460648,1752029443255,-260.89677141,0.00019288,2]
[370460649,1752029443264,-500.0,0.00019315,2]
[370460650,1752029443274,-500.0,0.00019342,2]
[370460651,1752029443283,-500.0,0.0001935,2]
[370460652,1752029443292,-216.29795651,0.0001935,2]
[370460653,1752029443301,-450.0,0.0001935,2]
[370460654,1752029443310,-500.0,0.0001935,2]
[370460655,1752029443319,-500.0,0.0001935,2]
[370460656,1752029443329,-500.0,0.0001935,2]
[370460657,1752029443338,-500.0,0.0001935,2]
[370460658,1752029443347,-500.0,0.0001935,2]
[370460659,1752029443356,-15886.23138938,0.00019352,2]
[370460660,1752029443365,-500.0,0.0001937,2]